Cogmind - Beta 15 @@@ ROGUE MODE // 2025.06.06 @ 18:08:17 Player: Cracklepappy Result: Destroyed by as-85812 with Assembled F-torch Performance ------------- Evolutions (0) 0 Regions Visited (2) 400 Robots Destroyed (30) 150 Value Destroyed (625) 625 Prototype IDs (0) 0 Alien Tech Used (0) 0 Bonus (0) 0 TOTAL SCORE: 1175 Bonus ------- None Cogmind --------- Core Integrity 0/250 Matter 250/300 Energy 224/250 System Corruption 2% Temperature Cool (33) Movement Treading (160) Location -10/Mines Parts ------- > --- POWER (1) -------- Ion Engine > --- PROPULSION (2) --- Light Treads Light Treads > --- UTILITY (2) ------ Improved Heat Sink Large Storage Unit > --- WEAPON (2) ------- Spread Laser Grenade Launcher > --- INVENTORY (15) --- Light Deuterium Engine Aluminum Leg Aluminum Leg Cryofiber Web Heat Sink High-capacity Matter Pod (200) Hacking Suite Spread Laser Spread Laser Spread Laser Spread Laser Spread Laser Spread Laser Spread Laser Heavy Flail Peak State ------------ > --- POWER ------------ Ion Engine > --- PROPULSION ------- Light Treads Light Treads > --- UTILITY ---------- Improved Heat Sink Large Storage Unit > --- WEAPON ----------- Spread Laser Heavy Flail > --- INVENTORY -------- Light Deuterium Engine Aluminum Leg Aluminum Leg Cryofiber Web Heat Sink High-capacity Matter Pod Hacking Suite Spread Laser Spread Laser Spread Laser Spread Laser Spread Laser Spread Laser Spread Laser Grenade Launcher [Rating: 14] Favorites ----------- Power Light Ion Engine Engine Light Ion Engine Propulsion Light Treads Treads Light Treads Leg Aluminum Leg Utility Improved Heat Sink Device Improved Heat Sink Storage Large Storage Unit Weapon Light Assault Rifle Energy Gun Spread Laser Ballistic Gun Light Assault Rifle Launcher Grenade Launcher Impact Weapon Heavy Flail Build | -11 -10 -10 ------- Run | Yrd Mat Min Slots Evolved . | . . . Power . | . . . Propulsion . | . . . Utility . | . . . Weapon . | . . . Parts Attached 25 | 7 17 1 Power 4 | 1 3 . Engine 4 | 1 3 . Core . | . . . Reactor . | . . . Propulsion 7 | 2 5 . Treads 5 | 2 3 . Leg 2 | . 2 . Wheel . | . . . Hover . | . . . Flight . | . . . Utility 5 | 2 3 . Device 2 | 1 1 . Storage 3 | 1 2 . Processor . | . . . Hackware . | . . . Protection . | . . . Artifact . | . . . Weapon 9 | 2 6 1 Energy Gun 4 | . 4 . Energy Cannon . | . . . Ballistic Gun 3 | 2 1 . Ballistic Cannon . | . . . Launcher 1 | . 1 . Special Weapon . | . . . Impact Weapon 1 | . . 1 Slashing Weapon . | . . . Piercing Weapon . | . . . Special Melee Weapon . | . . . Unidentified Prototypes . | . . . Corrupted Parts 1 | . . 1 System Corruption 2 | . . 2 Parts Lost 7 | . 7 . Power 2 | . 2 . Propulsion 3 | . 3 . Utility 1 | . 1 . Weapon 1 | . 1 . Highest Loss Streak 6 | . 6 . To Critical Strikes . | . . . Average Backups 10 | 5 10 15 Power . | . . 1 Propulsion 2 | 2 2 2 Utility 2 | . 2 4 Weapon 4 | . 4 8 Tool/Special . | . . . Unused Backups 20 | . 6 14 Power 3 | . 1 2 Propulsion 2 | . 2 . Utility 7 | . 2 5 Weapon 8 | . 1 7 Tool/Special . | . . . Average Slot Usage (%) 98 | . 98 100 Engine 12 | . 12 14 Treads 19 | . 18 28 Leg 8 | . 9 . Device 13 | . 13 14 Storage 14 | . 14 14 Energy Gun 14 | . 13 27 Ballistic Gun 12 | . 14 . Peak Build Rating 14 | 7 13 14 Average Rating 9 | 5 9 13 On Entrance 6 | . 7 13 Naked Turns . | . . . Heaviest Build 32 | 11 32 32 Greatest Support 40 | 40 40 40 Greatest Overweight (x) 1 | . 1 . Average Overweight (x) . | . . . Largest Inventory Capacity 15 | 8 15 15 Average Capacity 11 | 7 11 15 Most Carried 15 | 8 15 15 Average Carried 10 | 5 10 14 Final Capacity 15 | 8 15 15 Final Carried 15 | 8 15 15 Class Distribution -------------------- 59% | Mutant 40% | Scavenger-Mutant Dominant Class ---------------- Mutant | -10/Materials Scavenger-Mutant | -10/Mines Resources | -11 -10 -10 ----------- Run | Yrd Mat Min Matter Collected 985 | 218 767 . Remotely . | . . . Salvage Created 904 | 118 769 17 Parts 54 | 10 44 . Haulers Intercepted 2 | . 2 . Recyclers Shooed 1 | . 1 . Parts Field Recycled . | . . . Retrieved Matter . | . . . Parts Self-Destructed . | . . . Prevented . | . . . Kills | -11 -10 -10 ------- Run | Yrd Mat Min Combat Hostiles Destroyed 18 | . 16 2 Guns 12 | . 11 1 AOE 6 | . 5 1 Classes Destroyed 9 | 2 6 1 Worker 3 | . 3 . Tunneler 3 | 2 1 . Hauler 2 | . 2 . Recycler 1 | 1 . . Operator 2 | . 2 . Watcher 3 | . 3 . Swarmer 3 | . 3 . Grunt 13 | . 13 . Assembled 2 | . . 2 Best Kill Streak 7 | 1 7 1 Combat Bots Only 4 | . 4 1 Max Kills in Single Turn 3 | 1 3 1 Gunslinging . | . . . Exploded 3 | . 3 1 Melee . | . . . Uniques/NPCs Destroyed . | . . . Combat | -11 -10 -10 -------- Run | Yrd Mat Min Hostile Shots Fired 101 | . 98 3 Missed 21 | . 21 . Hits 80 | . 77 3 Melee 1 | . . 1 Projectile 79 | . 77 2 Critical Strikes 3 | . 3 . Damage Taken 1172 | . 1051 121 Core 254 | . 168 86 Absorbed by Shields . | . . . Core Remaining (%) 100 | 100 . . Volleys Fired 133 | 12 117 4 Largest 2 | 2 2 2 Hottest 130 | 40 130 130 Shots Fired 224 | 24 193 7 Gun 220 | 24 190 6 Cannon . | . . . Launcher 4 | . 3 1 Special . | . . . Kinetic 178 | 24 154 . Thermal 26 | . 20 6 Explosive 4 | . 3 1 Electromagnetic 16 | . 16 . Robot Hit Streak 13 | 5 13 8 Robot Miss Streak 7 | 3 5 7 Penetration Max . | . . . Secondary Targets . | . . . Shots Hit Robots 147 | 15 126 6 Core Hits 84 | 7 69 8 Critical Kills . | . . . Critical Parts Destroyed 1 | . 1 . Critical Strikes 1 | . 1 . Destroy 1 | . 1 . Melee Attacks 3 | . . 3 Impact 3 | . . 3 Slashing . | . . . Piercing . | . . . Sneak Attacks . | . . . Combat Hostiles . | . . . Follow-up Attacks . | . . . Damage Inflicted 1926 | 121 1708 97 Guns 1518 | 121 1344 53 Cannons . | . . . Explosions 408 | . 364 44 Melee . | . . . Ramming . | . . . Kinetic 1048 | 121 927 . Thermal 297 | . 244 53 Explosive 408 | . 364 44 Electromagnetic 173 | . 173 . Impact . | . . . Slashing . | . . . Piercing . | . . . Highest Corruption 2 | . . 2 Average Corruption 2 | . . 2 Corruption Purged . | . . . Corruption Blocked . | . . . Effects 1 | . . 1 Matter Fused 1 | . . 1 Overload Shots . | . . . Overflow Damage . | . . . Projectiles . | . . . Explosions . | . . . Melee . | . . . Knockbacks . | . . . Impact . | . . . Kinetic . | . . . Secondary . | . . . Self-Inflicted Damage 62 | . 22 40 Shots 2 | . 1 1 Rammed . | . . . Targets Rammed . | . . . Kicked . | . . . Crushed . | . . . Highest Temperature 126 | . 126 54 Average Temperature 26 | . 26 30 Received Heat Transfer 649 | . 609 40 Siege Activations . | . . . Martial Activations . | . . . Shielding Activations . | . . . Robots Disrupted . | . . . Combat Hostiles . | . . . Robots Corrupted . | . . . Combat Hostiles . | . . . Parts Fried . | . . . Impact Corruptions . | . . . Robots Melted . | . . . Combat Hostiles . | . . . Parts Melted . | . . . Heat Transferred 375 | . 305 70 Parts Sabotaged . | . . . Parts Stolen . | . . . Parts Stripped . | . . . Power Chain Reactions . | . . . Alert | -11 -10 -10 ------- Run | Yrd Mat Min Maximum Alert Level 1 | . 1 . Low Security (%) 99 | 100 99 100 Level 1 . | . . . Level 2 . | . . . Level 3 . | . . . Level 4 . | . . . Level 5 . | . . . High Security . | . . . Max Security . | . . . Peak Influence 201 | 5 201 72 Initial 72 | . . 72 Average 34 | . 38 17 Influence Increases 619 | 15 593 11 Destroy 0b10 Robot/C 320 | . 320 . Destroy 0b10 Robot/NC 70 | 15 55 . Destroy Leader 80 | . 80 . Successful Hack 31 | . 31 . Select Force Hacks 60 | . 60 . Destroy Structure 28 | . 17 11 Partial Spotted 15 | . 15 . Lose Combat Pursuer 15 | . 15 . Influence Decreases 609 | 15 406 188 Entered New Map 115 | . . 115 Time Decay 454 | 15 366 73 Lost Part 40 | . 40 . Squads Dispatched 3 | . 3 . Investigation 2 | . 2 . Extermination . | . . . Reinforcement 1 | . 1 . Assault . | . . . Garrison . | . . . Intercept . | . . . Searches Triggered . | . . . Construction Impeded . | . . . Haulers Reinforced . | . . . Active Scanning Responses . | . . . Cargo Convoy Interrupts . | . . . Stealth | -11 -10 -10 --------- Run | Yrd Mat Min Distress Signals 1 | . 1 . Communications Jammed . | . . . Distress Signals . | . . . Times Spotted 40 | . 35 5 Peak Tracking Total 5 | . 5 3 Tactical Retreats 1 | . 1 . Traps | -11 -10 -10 ------- Run | Yrd Mat Min Traps Triggered 1 | . . 1 Indirectly . | . . . Trap Hack Attempts . | . . . Triggered . | . . . Disarmed . | . . . Reprogrammed . | . . . Reused . | . . . Traps Extracted . | . . . Installed . | . . . Triggered . | . . . Machines | -11 -10 -10 ---------- Run | Yrd Mat Min Machines Disabled . | . . . Max in Single Turn . | . . . Machines Repaired . | . . . Machines Dismantled . | . . . Machines Sabotaged . | . . . Overloaded Fab Kills . | . . . Hacking | -11 -10 -10 --------- Run | Yrd Mat Min Machines Accessed 11 | . 10 1 Terminals 7 | . 7 . Fabricators . | . . . Repair Stations 1 | . 1 . Recycling Units 2 | . 2 . Scanalyzers . | . . . Garrison Access . | . . . Total Hacks 26 | . 25 1 Successful 16 | . 15 1 Failed 9 | . 9 . Catastrophic 1 | . 1 . Database Lockouts 1 | . 1 . Manual 19 | . 19 . Terminals 21 | . 21 . Fabricators . | . . . Repair Stations 2 | . 2 . Recycling Units 2 | . 2 . Scanalyzers . | . . . Garrison Access . | . . . Terminal Hacks 7 | . 6 1 Part Schematic 3 | . 3 . Robot Schematic 1 | . 1 . Open Door 1 | . . 1 Locate Traps 2 | . 2 . Fabricator Hacks . | . . . Repair Station Hacks 1 | . 1 . Scan Component 1 | . 1 . Recycling Unit Hacks . | . . . Scanalyzer . | . . . Garrison Access Hacks . | . . . Unauthorized Hacks 8 | . 8 . Terminals 6 | . 6 . Operators 1 | . 1 . Skim 5 | . 5 . Fabricators . | . . . Repair Stations . | . . . Recycling Units 2 | . 2 . Tunnel 2 | . 2 . Scanalyzers . | . . . Garrison Access . | . . . Data Cores Recovered . | . . . Used . | . . . Hacking Detections 6 | . 6 . Full Trace Events . | . . . Feedback Events . | . . . Feedback Blocked . | . . . Robot Schematics Acquired 1 | . 1 . Robots Built . | . . . Authchips . | . . . Time . | . . . Total Robot Build Rating . | . . . Part Schematics Acquired 3 | . 3 . Parts Built . | . . . Authchips . | . . . Time . | . . . Total Part Build Rating . | . . . Parts Repaired . | . . . Time . | . . . Parts Recycled . | . . . Recycled Matter . | . . . Retrieved Matter . | . . . Retrieved Components . | . . . Parts Scanalyzed . | . . . Part Schematics Acquired . | . . . Parts Damaged . | . . . Bothacking | -11 -10 -10 ------------ Run | Yrd Mat Min Used RIF Installer . | . . . Robots Hacked . | . . . Non-combat . | . . . Combat . | . . . Robot Hacks Applied . | . . . Relay Couplers Released . | . . . Fabnet Peak Effective % . | . . . Robots Rewired . | . . . Allies Hacked . | . . . Hacks Repelled . | . . . Allies | -11 -10 -10 -------- Run | Yrd Mat Min Total Allies . | . . . Largest Group . | . . . Highest-Rated Group . | . . . Highest-Rated Ally . | . . . Total Orders . | . . . Ally Attacks . | . . . Total Damage . | . . . Kills . | . . . Allies Corrupted . | . . . Allies Melted . | . . . Intel | -11 -10 -10 ------- Run | Yrd Mat Min Active Infowar (turns) 887 | 86 801 . Seismic 887 | 86 801 . Robot Analysis Total . | . . . Derelict Logs Recovered . | . . . Drone Launches . | . . . Drone Recoveries . | . . . Exploration | -11 -10 -10 ------------- Run | Yrd Mat Min Turns Passed 3158 | 198 2634 326 Spaces Moved 1484 | 96 1271 117 Core 4 | 4 . . Treads 1085 | 92 876 117 Legs 395 | . 395 . Wheels . | . . . Hover . | . . . Flight . | . . . Fastest Speed 50 | 50 120 160 Average Speed 153 | 155 152 160 Slowest Speed 240 | 160 240 160 Overloaded Moves . | . . . Propulsion Burnouts . | . . . Robots Hopped . | . . . Potential Cave-ins . | . . . Cave-ins Triggered . | . . . Exploration Rate (%) 47 | 7 97 38 Regions Visited 2 Branch Regions 1 Pre-discovered Areas 3 | . 3 . Known Exits Taken . | . . . Unknown Exits Taken 2 | 1 1 . Scrap Searched . | . . . Spaces Dug 3 | . . 3 Terrain Destroyed 29 | . 15 14 Melee 3 | . . 3 Projectile . | . . . AOE 26 | . 15 11 Terrain Rammed . | . . . Walls Destroyed . | . . . Machines Disabled . | . . . Actions | -11 -10 -10 --------- Run | Yrd Mat Min Total 2166 | 122 1796 248 Wait 460 | . 345 115 Move 1482 | 95 1270 117 Hop . | . . . Pick Up 33 | 8 22 3 Fast Attach 11 | 7 4 . Attach 7 | . 7 . Detach 2 | . 2 . Swap 17 | . 14 3 Drop 18 | . 15 3 Fire 133 | 12 117 4 Melee 3 | . . 3 Ram . | . . . Kick . | . . . Crush . | . . . Escape Stasis . | . . . Rewire . | . . . Trap . | . . . Miscellaneous . | . . . Route ------- -11/Scrapyard -10/Materials (discovered 6 exits: *Mat x3 / *Min x2 / Sub) -10/Mines (discovered 3 exits: Mat x2 / Sub) History --------- Turn | Location | Event 10 | -11/Scrapyard | Discovered new exit (range 15) 199 | -11/Scrapyard | Entered Materials 312 | -10/Materials | Build established: Mutant 342 | -10/Materials | Discovered new exit (range 12) 610 | -10/Materials | Discovered new exit (range 13) 914 | -10/Materials | Discovered new exit (range 13) 977 | -10/Materials | Core integrity fell below 50% 1027 | -10/Materials | Central database locked down 1037 | -10/Materials | Lost 6 parts (1p3n1u1w) 1425 | -10/Materials | Discovered new exit (range 8) 1497 | -10/Materials | Learned Storage stockpile data 1526 | -10/Materials | Loaded intel: 17 trap records 1544 | -10/Materials | Learned location of Mines (-9) 1550 | -10/Materials | Learned 2 Mines zone layouts 1551 | -10/Materials | Learned 2 Mines zone layouts 1561 | -10/Materials | Identified exit to Subcaves 1579 | -10/Materials | Learned location of 2 exits from Mines 1607 | -10/Materials | Identified exit to Materials 2174 | -10/Materials | Build established: Scavenger-Mutant 2833 | -10/Materials | Entered Mines 2834 | -10/Mines | Assembled infested the area 2839 | -10/Mines | Assisted by a Guerilla fighting off Assembled 2868 | -10/Mines | Met a Derelict who couldn't figure out how to use a Trap Extractor 3012 | -10/Mines | Core integrity fell below 20% 3159 | -10/Mines | Destroyed by as-85812 with Assembled F-torch Last Messages --------------- 02868_ A bubble of electromagnetic force engulfs the area. 02868_ SHOP.Sys disabled. 02868_ Machine disabled. 02877_ Dropped Hrd. Light Armor Plating. 02878_ Acquired Corrupted Cryofiber Web. 02882_ Dropped Hammer. 02882_ Acquired Corrupted Hvy. Flail. 02884_ Dropped Lgt. Ion Engine. 02884_ Acquired Corrupted Lgt. Deuterium Engine. 02986_ Triggered Explosive Trap. 02986_ An explosion rips through the floor. 03011_ as-86519 destroyed. 03055_ Integrated Corrupted Hvy. Flail (+2). 03055_ Complication: System interference. 03055_ Spread Laser temporarily disabled. 03055_ Imp. Heat Sink temporarily disabled. 03090_ T-07 Excavator is excavating. 03098_ System corrupted: Matter fused (-10). 03098_ T-07 Excavator is excavating. 03159_ as-32501 destroyed. Map ----- +----------------------------------------------------+ | | | | | | | | | ?????????????????????????????????????????????????? | | ????????????????????????????????????????????###### | | ???????????????????????????????????????????## | | ???????????????????????## # | | ??????????????????????????????????????#??##### ## | | ?????????????????????????????????????# # #???# #? | | ?????????????????????????????????????? #???# #? | | ?????????????????????????????????????## ###?# #? | | ???????????????????????????????????### ### ## | | ??????????????????????????????????## ## ## | | ??????????????????????????????????# ## | | ?????????????????????????????????## ## | | ????????????????????????????????## ### | | ???????????????????????????###### """ #?# | | ???????????????????????????# """ ### | | ??????????????????????????## #### """ | | ????????????????????????## # #??# # | | ??????????????????## #### #?# # | | ?????????????????## a #### ### #### # | | ?????????????????# a%! @ #?# ##?#####??## # | | ?????????????????# # %= # #??????????# # | | ???????????????????# # ### #?????????## # | | ???????????????????? ?? #?????##### ## | | ???????????????????## # ???# #????## ##? | | ????????????????????#%# #???? #????# #?? | | ????????????????????#?##????? ##????# ##?? | | ?????????????????????????????? ??????# ##??? | | ???????????????????????????????#??????## ####???? | | ???????????????????????????????????????##"#??????? | | ????????????????????????????????????????# #??###?? | | ???????????????????????????????????????## ### ##? | | ??????????????????????????????????????## ## | | ??????????????????????????????????????# # | | ?????????????????????????????########## # | | ????????????????????????????? ### ###### | | ????????????????????????????? #?#### #?###? | | ????????????????????????????? #????# ### ## | | ????????????????????????#??"" """ #????# | | ????????????????????????# ?"" """ ###### #!*[ | | ????????????????????????# """ """ ## # ! / | | ????????????????????????# ## ##### ! ! | | ????????????????????????# """ """ ## #???# # | | ????????????????????????# """ """ ## #???# | | ????????????????????????# """ """ !## ##### | +----------------------------------------------------+ Best States ------------- Heat Dissipation 39 Energy Generation 10 Energy Capacity 250 Matter Stores 300 Matter Capacity 300 Sight Range 16 Terrain Scan Density 10 Evasion (%) 55 Recoil Reduction 2 Item Schematics ----------------- Huge Storage Unit | -10/Materials | Hacked Lgt. Assault Rifle | -10/Materials | Hacked Lgt. Treads | -10/Materials | Hacked Robot Schematics ------------------ M-13 Machinist | -10/Materials | Hacked Fabricated ------------ Nothing Repaired ---------- Nothing Alien Tech Used ----------------- None Achievements -------------- None Challenges ------------ None Game ------ Seed MachineBiocellRouter Manual? 0 Play Time 00:19:36 Cumulative 869.7 hours Start 2025.06.06 @ 17:44:07 End 2025.06.06 @ 18:08:17 Sessions 2 Manual Loads 0 Difficulty Rogue Special Mode None Game No. 474 Rogue 474 Adventurer 0 Explorer 0 Win Type - Total 22 Types 10/3/3/0/1/1/2/2/0/0 Lore% 80 Gallery% 85 Achievement% 83 Wizard Run 0 Options --------- Layout 0 ASCII 0 Keyboard 0 Movement Numpad Keybinds 0 Fullscreen 2 Font 24/Smallcaps Map View 76x50 Zoom Use 0% Tactical HUD 1 Map Filters NONE Filters NONE Steam 1 RUN: a9dba399-e7cf-4a3a-a331-a9cbcf645332